bitfinex/quotes_SOLUSD_20250929
["timestamp","ask_amount","ask_price","bid_price","bid_amount"]
[1759153622483,0.67,208.74,208.57,67.48]
[1759153622678,17.43325494,208.79,208.61,26.0]
[1759153622877,17.43325494,208.79,208.62,42.15]
[1759153623089,30.78950141,208.79,208.63,14.26559401]
[1759153623391,5.04461904,208.83,208.67,13.59559401]
[1759153623392,4.78914854,208.81,208.67,13.59559401]
[1759153623599,4.78914854,208.81,208.68,0.67]
[1759153624289,9.16337149,208.83,208.68,0.67]
[1759153624498,4.37461904,208.8,208.68,0.67]
[1759153624683,31.04461904,208.8,208.68,0.67]
[1759153624879,31.04461904,208.8,208.68,41.46]
[1759153625601,0.67,208.79,208.68,41.46]
[1759153626184,4.37461904,208.78,208.68,41.46]
[1759153626383,4.78996024,208.77,208.68,41.46]
[1759153626585,4.37461904,208.75,208.63,0.67]
[1759153626887,30.78996024,208.77,208.64,41.46]
[1759153627092,0.67,208.76,208.65,0.67]
[1759153627283,4.37461904,208.73,208.66,41.42]
[1759153628480,4.7911077,208.72,208.66,41.42]
[1759153628683,5.4608354,208.74,208.66,41.42]
[1759153628900,9.83545444,208.74,208.66,41.42]
[1759153629103,4.37461904,208.69,208.58,41.36]
[1759153629311,26.67,208.68,208.58,41.36]
[1759153629605,26.0,208.68,208.59,0.67]
[1759153629790,26.0,208.68,208.58,41.36]
[1759153629791,26.67,208.68,208.58,41.36]
[1759153629987,0.67,208.68,208.58,41.36]
[1759153630182,26.0,208.64,208.58,41.36]
[1759153630584,26.0,208.66,208.58,41.36]
[1759153630794,30.79257077,208.66,208.58,41.36]
[1759153630995,5.46168335,208.7,208.59,0.67]
[1759153631195,4.79168335,208.7,208.59,0.67]
[1759153631395,4.79121876,208.72,208.59,0.67]
[1759153631802,4.79085122,208.74,208.61,26.0]
[1759153631975,4.79085122,208.74,208.62,0.67]
[1759153632606,0.67,208.73,208.62,0.67]
[1759153632806,5.04461904,208.77,208.62,5.46335078]
[1759153633099,4.79053318,208.75,208.63,0.67]
[1759153633484,0.67,208.74,208.63,0.67]
[1759153633675,26.0,208.76,208.63,0.67]
[1759153633880,0.7,208.81,208.64,26.0]
[1759153634086,0.7,208.8,208.65,14.26559401]
[1759153634290,5.07461904,208.79,208.66,41.99]
[1759153634477,16.75442794,208.9,208.66,41.99]
[1759153634478,26.7,208.78,208.66,41.99]
[1759153634679,26.7,208.78,208.66,46.78242481]
[1759153634876,26.0,208.8,208.67,0.67]
[1759153635105,3.19459532,208.89,208.67,0.67]
[1759153635106,3.19459532,208.89,208.69,26.0]
[1759153635309,0.7,208.83,208.7,0.67]
[1759153635504,0.7,208.86,208.7,0.67]
[1759153635700,0.7,208.9,208.74,26.0]
[1759153636010,0.7,208.9,208.75,42.03]
[1759153636202,0.7,208.94,208.75,42.03]
[1759153636382,0.7,208.95,208.79,26.0]
[1759153636580,0.7,208.95,208.76,14.26559401]
[1759153636581,0.7,208.95,208.81,4.78904267]
[1759153636894,5.48589979,208.95,208.82,0.67]
[1759153637086,4.37461904,208.94,208.83,41.54]
[1759153637283,26.0,208.92,208.84,41.58]
[1759153637485,0.7,208.91,208.84,41.58]
[1759153638112,0.7,208.9,208.79,0.67]
[1759153638416,39.59559401,208.89,208.83,41.6]
[1759153638706,16.75683438,208.87,208.79,41.6]
[1759153638889,4.37461904,208.85,208.77,41.58]
[1759153639091,4.37461904,208.83,208.77,41.58]
[1759153639299,5.07461904,208.83,208.77,41.58]
[1759153639503,0.7,208.82,208.77,41.58]
[1759153639706,17.97021305,208.87,208.78,0.67]
[1759153639909,5.07461904,208.86,208.77,41.58]
[1759153640114,13.59559401,208.85,208.77,41.58]
[1759153640315,13.59559401,208.85,208.78,41.72]
[1759153640619,4.78835472,208.84,208.78,41.72]
[1759153640784,16.75924152,208.84,208.78,41.72]
[1759153641207,21.83386056,208.84,208.7,26.0]
[1759153641391,17.45924152,208.84,208.72,0.66]
[1759153641587,4.78835472,208.84,208.72,0.66]
[1759153641788,4.78807583,208.86,208.72,0.66]
[1759153641995,4.37461904,208.83,208.72,0.66]
[1759153642203,5.07461904,208.83,208.72,0.66]
[1759153642389,13.59559401,208.85,208.72,0.66]
[1759153642601,16.75924152,208.84,208.72,5.45092659]
[1759153642794,16.75924152,208.84,208.73,0.66]
[1759153642995,0.7,208.83,208.73,0.66]
[1759153643209,4.78835472,208.84,208.73,0.66]
[1759153643401,5.48835472,208.84,208.73,0.66]
[1759153643588,17.45924152,208.84,208.73,0.66]
[1759153643785,21.83386056,208.84,208.73,0.66]
[1759153644082,4.37461904,208.81,208.68,4.79182469]
[1759153644294,0.7,208.8,208.7,0.66]
[1759153644707,4.78950141,208.79,208.7,0.66]
[1759153645011,16.76325494,208.79,208.7,0.66]
[1759153645209,4.78950141,208.79,208.7,0.66]
[1759153645400,4.78950141,208.79,208.7,5.45146607]
[1759153645711,4.78950141,208.79,208.69,28.12]
[1759153645712,4.78950141,208.79,208.71,0.66]
[1759153646418,16.76325494,208.79,208.69,28.12]
[1759153647088,16.76325494,208.79,208.69,32.91176514]
[1759153647292,4.78927229,208.8,208.7,0.66]
[1759153647510,4.78902664,208.82,208.7,0.66]
[1759153648014,4.37461904,209.02,208.7,0.66]
[1759153648015,5.07461904,208.87,208.7,0.66]
[1759153648193,4.37461904,208.85,208.7,0.66]
[1759153648393,0.7,208.84,208.72,26.0]
[1759153648707,26.26476143,208.87,208.74,4.79064865]
[1759153648926,5.48766696,208.87,208.75,0.66]
[1759153649214,0.7,208.92,208.77,26.0]
[1759153649402,0.7,208.92,208.78,42.24]
[1759153649807,0.7,208.92,208.79,0.66]
[1759153650110,4.37461904,208.91,208.8,41.6]
[1759153650314,0.7,208.91,208.8,41.6]
[1759153650525,0.7,208.93,208.81,0.66]
[1759153650689,4.78652115,208.92,208.81,0.66]
[1759153650888,4.78652115,208.92,208.82,41.58]
[1759153651104,5.07461904,208.91,208.82,41.58]
[1759153651606,0.7,208.91,208.82,41.58]
[1759153651913,4.78630221,208.93,208.83,0.66]
[1759153652129,26.0,208.94,208.83,0.66]
[1759153652302,4.78537589,208.97,208.83,0.66]
[1759153652615,4.78606298,208.94,208.83,41.62]
[1759153652815,4.37461904,208.89,208.7,23.95759456]
[1759153652988,0.7,208.88,208.76,0.66]
[1759153653191,0.7,208.88,208.77,41.6]
[1759153653412,4.37461904,208.86,208.77,41.6]
[1759153653729,5.07461904,208.85,208.73,0.66]
[1759153654011,39.59559401,208.82,208.72,37.4]
[1759153654324,4.37461904,208.8,208.72,37.4]
[1759153654530,4.37461904,208.76,208.72,37.4]
[1759153654828,0.7,208.8,208.72,37.4]
[1759153655116,18.38462515,208.82,208.73,0.66]
[1759153655315,4.78903114,208.82,208.73,0.66]
[1759153655690,16.76106447,208.82,208.73,0.66]
[1759153655890,0.7,208.81,208.72,38.06]
[1759153656700,0.7,208.81,208.72,42.85108297]
[1759153656903,5.48905223,208.81,208.72,38.06]
[1759153657102,5.48905223,208.81,208.72,42.85106529]
[1759153657321,4.78858401,208.83,208.72,42.85106529]
[1759153657795,4.78858401,208.83,208.72,38.06]
[1759153657994,16.76004404,208.83,208.72,38.06]
[1759153658337,26.0,208.79,208.66,0.66]
[1759153658491,5.07461904,208.78,208.71,41.58]
[1759153658696,4.78996024,208.77,208.71,41.58]
[1759153658997,14.29559401,208.85,208.72,0.66]
[1759153659317,4.78812544,208.85,208.72,0.66]
[1759153659497,4.78791216,208.86,208.72,0.66]
[1759153659994,0.7,208.88,208.75,13.59559401]
[1759153660188,4.78675027,208.91,208.78,26.0]
[1759153660395,4.78675027,208.91,208.79,42.18]
[1759153660618,4.78675027,208.91,208.8,0.66]
[1759153660821,17.45362595,208.91,208.8,5.44921113]
[1759153661032,17.45362595,208.91,208.81,0.66]
[1759153661327,5.48675027,208.91,208.81,0.66]
[1759153661714,4.78675027,208.91,208.81,0.66]
[1759153662136,5.48675027,208.91,208.81,0.66]
[1759153662299,17.45362595,208.91,208.79,4.78937412]
[1759153662501,0.7,208.9,208.8,41.5]
[1759153662711,4.78720857,208.89,208.81,4.78904267]
[1759153662918,0.7,208.88,208.8,41.5]
[1759153663221,0.7,208.88,208.8,46.28925299]
[1759153664318,4.78697978,208.9,208.8,46.28919925]
[1759153664527,0.7,208.97,208.81,0.66]
[1759153664729,4.7856049,208.96,208.84,16.75924152]
[1759153664931,5.48539036,208.97,208.85,0.66]
[1759153665407,0.7,208.97,208.85,0.66]
[1759153665612,5.48470211,209.0,208.85,0.66]
[1759153665906,21.82104363,209.0,208.85,0.66]
[1759153666110,4.37461904,208.99,208.85,0.66]
[1759153666356,27.50357769,209.09,208.85,0.66]
[1759153666357,0.7,209.01,208.85,0.66]
[1759153666811,4.78491793,208.99,208.86,16.75763668]
[1759153667012,4.78491793,208.99,208.87,0.66]
[1759153667234,4.78491793,208.99,208.88,41.48]
[1759153667446,17.44721277,208.99,208.88,41.48]
[1759153667612,0.7,208.98,208.88,41.48]
[1759153667935,21.12183181,208.99,208.88,41.48]
[1759153668143,16.74721277,208.99,208.89,0.66]
[1759153668338,4.78459298,209.01,208.89,0.66]
[1759153668949,4.78400229,209.03,208.9,4.78697941]
[1759153669119,4.78400229,209.03,208.91,0.66]
[1759153669315,0.7,209.04,208.93,26.0]
[1759153669534,0.7,209.08,208.94,0.66]
[1759153669734,0.7,209.07,208.94,0.66]
[1759153670245,0.7,209.07,208.9,16.75442794]
[1759153670246,26.7,209.07,208.91,0.66]
[1759153670427,30.37461904,209.04,208.91,0.66]
[1759153670746,26.7,209.07,208.91,0.66]
[1759153670747,26.0,209.03,208.92,41.42]
[1759153670917,5.48423117,209.02,208.92,46.20650858]
[1759153671117,5.48423117,209.02,208.92,41.42]
[1759153671312,0.66,209.01,208.92,41.42]
[1759153671513,16.7448091,209.02,208.93,0.68]
[1759153671717,0.66,209.01,208.92,41.42]
[1759153671914,21.11942814,209.02,208.92,41.42]
[1759153672119,5.03461904,209.0,208.93,41.46]
[1759153672415,0.66,209.0,208.93,41.46]
[1759153672811,16.7448091,209.02,208.93,41.46]
[1759153673046,16.7448091,209.02,208.91,0.68]
[1759153673047,5.03461904,209.01,208.87,4.78766696]
[1759153673337,4.37461904,208.97,208.86,0.68]
[1759153673542,4.37461904,208.93,208.78,11.97411283]
[1759153673721,0.66,208.92,208.79,46.86950141]
[1759153673919,0.66,208.92,208.8,0.68]
[1759153674407,0.66,208.92,208.77,0.68]
[1759153674408,4.37461904,208.89,208.77,0.68]
[1759153674612,0.66,208.88,208.78,41.38]
[1759153675052,26.0,208.93,208.74,34.54]
[1759153675053,21.79145342,208.87,208.74,34.54]
[1759153675341,4.37461904,208.85,208.75,41.36]
[1759153675539,0.66,208.84,208.75,41.36]
[1759153675738,4.37461904,208.83,208.75,41.36]
[1759153675939,4.37461904,208.81,208.74,34.54]
[1759153676123,4.37461904,208.78,208.74,73.5]
[1759153676323,0.66,208.77,208.74,73.5]
[1759153676543,0.66,208.76,208.74,73.5]
[1759153676746,0.66,208.75,208.74,73.5]
[1759153676916,4.78996024,208.77,208.74,73.5]
[1759153677235,0.66,208.76,208.74,38.96]
[1759153677413,0.66,208.75,208.74,38.96]
[1759153678236,5.03461904,208.75,208.74,38.96]
[1759153678540,0.66,208.75,208.74,38.96]
[1759153679246,5.45041916,208.75,208.74,38.96]
[1759153679930,26.0,208.71,208.57,0.68]
[1759153680126,26.0,208.64,208.53,0.68]
[1759153680345,0.66,208.7,208.54,3.58]
[1759153680654,13.59559401,208.65,208.54,3.58]
[1759153680822,4.37461904,208.63,208.54,3.58]
[1759153681021,4.79317451,208.63,208.54,3.58]
[1759153681214,26.66,208.62,208.49,5.67635306]
[1759153681418,26.66,208.62,208.5,41.4]
[1759153681618,4.37461904,208.64,208.51,0.68]
[1759153681839,4.37461904,208.62,208.51,0.68]
[1759153682026,26.0,208.63,208.51,0.68]
[1759153682222,9.16739563,208.65,208.52,41.46]
[1759153682437,4.37461904,208.65,208.53,0.68]
[1759153682634,0.66,208.66,208.53,0.68]
[1759153682635,4.37461904,208.63,208.53,0.68]
[1759153682836,4.37461904,208.63,208.53,42.12]
[1759153683047,0.66,208.66,208.54,17.4633509]
[1759153683353,4.37461904,208.68,208.55,0.68]
[1759153683948,0.66,208.69,208.55,0.68]
[1759153684127,5.03461904,208.73,208.57,26.0]
[1759153684462,5.03461904,208.73,208.56,13.59559401]
[1759153684463,0.66,208.76,208.63,26.0]
[1759153684754,6.46287633,208.79,208.67,26.0]
[1759153684923,6.46287633,208.79,208.67,0.68]
[1759153685127,6.46287633,208.76,208.66,30.64]
[1759153685337,6.46287633,208.79,208.67,0.68]
[1759153685550,0.66,208.78,208.67,0.68]
[1759153685750,6.46287633,208.77,208.66,29.96]
[1759153685951,0.66,208.76,208.66,29.96]
[1759153686147,7.12287633,208.75,208.67,41.44]
[1759153686461,0.66,208.78,208.67,41.44]
[1759153687158,4.78996024,208.77,208.68,4.79202606]
[1759153687534,0.66,208.76,208.67,41.44]
[1759153687732,0.66,208.76,208.67,46.23214102]
[1759153687929,37.25230305,208.8,208.68,0.68]
[1759153688159,13.59559401,208.85,208.7,26.0]
[1759153688360,6.46287633,208.83,208.71,0.68]
[1759153688531,0.66,208.84,208.71,0.68]
[1759153688733,0.66,208.84,208.7,26.0]
[1759153688951,0.66,208.84,208.71,0.68]
[1759153689153,6.46287633,208.82,208.71,0.68]
[1759153689355,0.66,208.81,208.72,41.44]
[1759153690138,6.46287633,208.79,208.68,0.68]
[1759153690338,0.66,208.8,208.71,41.42]
[1759153691248,20.71847034,208.85,208.72,0.68]
[1759153691453,0.66,208.85,208.72,0.68]
[1759153691849,5.44743776,208.88,208.72,0.68]
[1759153692052,5.44743776,208.88,208.74,26.0]
[1759153692255,0.66,208.88,208.75,0.68]
[1759153692560,4.78718095,208.9,208.76,26.0]
[1759153692764,0.66,208.89,208.77,0.68]
[1759153693142,11.25031409,208.88,208.77,0.68]
[1759153693357,0.66,208.87,208.78,41.4]
[1759153693744,4.78743776,208.88,208.79,0.72]
[1759153694061,4.78715611,208.9,208.79,0.72]
[1759153694261,0.69,208.91,208.79,0.72]
[1759153694441,5.47683651,208.91,208.79,0.72]
[1759153694635,11.96351619,208.97,208.79,0.72]
[1759153694940,0.69,208.94,208.79,0.72]
[1759153695140,16.75202219,208.93,208.8,4.78927203]
[1759153695337,7.15287633,208.92,208.8,4.78927203]
[1759153695742,7.15287633,208.92,208.81,0.72]
[1759153696162,0.69,208.92,208.81,0.72]
[1759153696345,0.69,208.92,208.83,26.0]
[1759153696548,0.69,208.95,208.84,0.72]
[1759153696842,0.69,208.98,208.84,0.72]
[1759153697047,0.69,209.01,208.86,13.59559401]
[1759153697244,4.78463109,209.01,208.87,58.81683438]
[1759153697539,6.46287633,208.97,208.88,41.34]
[1759153697757,0.69,208.96,208.85,4.78807363]
[1759153697945,6.46287633,208.94,208.86,41.32]
[1759153698146,6.46287633,208.98,208.87,0.72]
[1759153698639,0.69,208.97,208.86,41.32]
[1759153698964,6.46287633,208.95,208.83,0.72]
[1759153699162,5.47606298,208.94,208.87,41.32]
[1759153699759,39.59559401,208.99,208.87,46.10755635]
[1759153699760,26.0,208.99,208.87,46.10755635]
[1759153700063,4.78542898,208.97,208.88,0.72]
[1759153700367,0.69,208.96,208.86,4.78789363]
[1759153700564,0.69,208.96,208.89,41.38]
[1759153700866,4.78542898,208.97,208.9,41.34]
[1759153701164,42.74740357,208.99,208.9,41.34]
[1759153701372,7.14287633,208.98,208.83,26.0]
[1759153701674,6.46287633,208.95,208.84,42.04]
[1759153701977,7.14287633,208.95,208.84,42.04]
[1759153702150,7.14287633,208.94,208.84,42.04]
[1759153702351,6.46287633,208.91,208.78,0.72]
[1759153702554,0.68,208.9,208.79,41.3]
[1759153702869,0.68,208.94,208.8,0.72]
[1759153703071,32.46287633,208.97,208.82,26.0]
[1759153703275,16.74961715,208.96,208.83,17.48004404]
[1759153703446,17.42961715,208.96,208.84,0.72]
[1759153703642,4.7856049,208.96,208.84,0.72]
[1759153703954,5.4656049,208.96,208.84,0.72]
[1759153704273,16.74961715,208.96,208.84,0.72]
[1759153704456,0.68,208.95,208.84,0.72]
[1759153704977,4.78525582,208.98,208.85,13.59559401]
[1759153705153,0.68,208.99,208.87,16.75683438]
[1759153705352,0.68,208.99,208.88,41.24]
[1759153705674,0.68,208.99,208.89,0.72]
[1759153706255,5.46496741,208.99,208.89,0.72]
[1759153707369,0.68,209.03,208.9,4.78697941]
[1759153707674,13.59559401,209.06,208.9,4.78697941]
[1759153707675,0.68,209.06,208.92,13.59559401]
[1759153707863,4.7835446,209.05,208.93,0.72]
[1759153708469,0.68,209.06,208.94,13.59559401]
[1759153708663,5.46331922,209.06,208.95,41.84]
[1759153708847,5.46331922,209.06,208.96,0.72]
[1759153709169,5.46331922,209.06,208.96,5.50556501]
[1759153709555,5.46331922,209.06,208.96,0.72]
[1759153709758,17.4216087,209.06,208.96,0.72]
[1759153710163,17.4216087,209.06,208.97,41.1]
[1759153710363,0.68,209.05,208.97,41.1]
[1759153710559,7.14287633,209.04,208.92,0.72]
[1759153710757,7.14287633,209.04,208.93,31.94]
[1759153710955,0.68,209.05,208.94,0.72]
[1759153711155,4.78377344,209.04,208.95,4.78583393]
[1759153711354,0.68,209.05,208.96,0.72]
[1759153711571,0.68,209.07,208.96,0.72]
[1759153713083,6.46287633,209.06,208.97,41.0]
[1759153713385,16.74320704,209.04,208.97,41.0]
[1759153713583,6.46287633,209.02,208.93,0.72]
[1759153713760,6.46287633,209.02,208.98,40.98]
[1759153713960,0.68,209.01,208.98,40.98]
[1759153714177,0.68,209.0,208.98,40.98]
[1759153714376,0.68,209.0,208.97,40.98]
[1759153714584,0.68,208.99,208.97,40.98]
[1759153714965,0.68,209.01,208.97,40.98]
[1759153715272,0.68,209.0,208.97,40.98]
[1759153715582,5.46480202,209.0,208.97,40.98]
[1759153715785,5.46480202,209.0,208.93,0.72]
[1759153715979,7.14287633,208.99,208.92,40.94]
[1759153716284,0.68,209.05,208.93,0.72]
[1759153717882,0.68,209.05,208.94,16.75122044]
[1759153718058,5.4635607,209.05,208.95,0.72]
[1759153719383,0.68,209.06,208.95,0.72]
[1759153719790,4.7835446,209.05,208.96,4.7856049]
[1759153720488,0.68,209.04,208.95,0.72]
[1759153720695,0.68,209.04,208.92,79.3]
[1759153720997,26.68,209.05,208.93,41.52]
[1759153721496,26.0,209.05,208.93,41.52]
[1759153721700,0.68,209.04,208.93,41.52]
[1759153721898,0.68,209.03,208.94,4.78606298]
[1759153722574,0.68,209.03,208.94,16.75122044]
[1759153722896,0.68,209.03,208.94,4.78606298]
[1759153723792,0.68,209.07,208.95,0.72]
[1759153724095,0.68,209.07,208.96,16.74961715]
[1759153724305,0.68,209.07,208.97,0.72]
[1759153724677,6.56287633,209.11,208.97,0.72]
[1759153724678,12.05568523,209.11,208.97,214.72]
[1759153724871,12.05568523,209.11,208.98,0.72]
[1759153724872,5.56220259,209.11,208.98,0.72]
[1759153725213,17.51763274,209.11,208.98,0.72]
[1759153725372,6.46287633,209.1,208.99,40.72]
[1759153725571,0.68,209.09,208.99,40.72]
[1759153725908,16.74080451,209.07,209.0,40.72]
[1759153726086,7.14287633,209.06,209.0,40.72]
[1759153726426,6.46287633,209.03,208.87,23.93791828]
[1759153726611,6.46287633,209.03,208.75,43.72287017]
[1759153726612,0.68,209.02,208.88,4.78743776]
[1759153726767,66.65623953,209.07,208.89,40.74]
[1759153726768,6.46287633,209.0,208.89,40.74]
[1759153727091,6.46287633,209.0,208.9,0.72]
[1759153727298,7.14287633,209.01,208.9,0.72]
[1759153728101,7.14287633,209.01,208.89,40.74]
[1759153728102,16.74641147,209.0,208.89,40.74]
[1759153728280,6.46287633,208.98,208.87,5.50765733]
[1759153728480,0.68,208.97,208.88,40.72]
[1759153728807,0.68,208.96,208.88,40.72]
[1759153729796,0.68,208.95,208.85,0.72]
[1759153730005,0.68,208.95,208.89,45.48712258]
[1759153730179,5.46583495,208.95,208.89,40.7]
[1759153730704,0.68,208.95,208.89,40.7]
[1759153730911,5.46468899,209.0,208.9,0.72]
[1759153731412,0.65,209.03,208.9,0.72]
[1759153731602,17.39400803,209.03,208.9,0.72]
[1759153731974,0.65,209.07,208.91,16.75362595]
[1759153732182,0.65,209.07,208.92,0.66]
[1759153732516,0.65,209.07,208.96,26.0]
[1759153732676,0.75,209.11,208.97,54.91559401]
[1759153733086,0.75,209.11,208.98,0.66]
[1759153733087,0.1,209.11,208.98,0.66]
[1759153733307,5.53232569,209.11,208.98,0.66]
[1759153733603,6.46287633,209.08,208.94,0.66]
[1759153733941,4.78262948,209.09,208.96,16.74961715]
[1759153734205,0.65,209.07,208.96,4.7856049]
[1759153734417,0.65,209.06,208.89,26.0]
[1759153734591,0.65,209.05,208.93,0.66]
[1759153735486,0.65,209.06,208.93,0.66]
[1759153735792,0.65,209.05,208.93,0.66]
[1759153736103,5.43371334,209.05,208.94,16.75122044]
[1759153736302,5.43371334,209.05,208.94,57.35122044]
[1759153736507,5.43371334,209.05,208.87,23.93833484]
[1759153736508,6.46287633,209.01,208.95,40.58]
[1759153736806,7.11287633,209.04,208.96,40.58]
[1759153737104,0.65,209.03,208.96,40.58]
[1759153737303,0.65,209.02,208.96,40.58]
[1759153737483,7.11287633,209.01,208.93,40.56]
[1759153737700,0.65,209.0,208.93,40.56]
[1759153737901,4.78446007,209.01,208.94,4.78606298]
[1759153738099,4.78401275,209.03,208.93,40.56]
[1759153738305,0.65,209.02,208.94,40.54]
[1759153738530,6.46287633,208.98,208.84,0.66]
[1759153738828,6.46287633,208.95,208.82,34.5]
[1759153739018,6.46287633,208.92,208.82,34.5]
[1759153739209,0.65,208.91,208.82,67.62]
[1759153739408,3.20912804,208.95,208.83,0.66]
[1759153739614,3.85912804,208.97,208.83,0.66]
[1759153739814,0.65,208.97,208.83,0.66]
[1759153740017,0.65,208.97,208.84,16.75924152]
[1759153740331,0.65,208.96,208.85,0.66]
[1759153740502,4.78518351,208.98,208.85,41.2]
[1759153740819,0.65,208.97,208.86,0.66]
[1759153741333,0.65,208.97,208.87,40.5]
[1759153741623,0.65,208.97,208.83,0.66]
[1759153741624,32.46287633,208.95,208.88,40.5]
[1759153741832,19.95717881,208.98,208.82,40.5]
[1759153741833,6.46287633,208.89,208.82,40.5]
[1759153741999,4.78743776,208.88,208.82,40.5]
[1759153742803,4.78743776,208.88,208.75,26.0]
[1759153742804,0.65,208.87,208.75,0.66]
[1759153743008,6.46287633,208.86,208.7,16.77048394]
[1759153743203,0.65,208.85,208.71,40.14]
[1759153743428,4.78743776,208.88,208.74,26.0]
[1759153743624,0.65,208.87,208.75,0.66]
[1759153743822,11.25031409,208.88,208.75,0.66]
[1759153743823,3.20912804,208.9,208.75,26.66]
[1759153744022,4.78706308,208.9,208.77,16.76486084]
[1759153744330,9.15274314,208.9,208.78,41.16]
[1759153744731,4.36568006,208.87,208.77,4.78996024]
[1759153744937,0.65,208.86,208.79,40.5]
[1759153745133,0.65,208.86,208.78,40.48]
[1759153745432,4.36568006,208.84,208.75,4.79022339]
[1759153745632,4.36568006,208.84,208.76,40.48]
[1759153746128,0.65,208.85,208.77,4.78996024]
[1759153746309,5.43812835,208.85,208.77,4.78996024]
[1759153746508,4.78777017,208.87,208.77,5.44996024]
[1759153746720,26.0,208.98,208.78,0.66]
[1759153746924,13.59559401,208.88,208.78,0.66]
[1759153747129,4.36568006,208.87,208.78,0.66]
[1759153747335,4.36568006,208.87,208.76,40.48]
[1759153747834,4.36568006,208.84,208.75,0.66]
[1759153748034,16.76004404,208.83,208.76,40.54]
[1759153748217,4.36568006,208.82,208.76,40.54]
[1759153748530,16.76004404,208.83,208.74,40.52]
[1759153748531,5.01568006,208.81,208.74,40.52]
[1759153749107,14.24559401,208.8,208.74,40.52]
[1759153749306,0.65,208.8,208.74,40.52]
[1759153749524,0.65,208.8,208.7,5.45154367]
[1759153749724,26.0,208.8,208.71,41.18]
[1759153750107,30.78930954,208.8,208.72,4.7911077]
[1759153750309,4.36568006,208.81,208.72,4.7911077]
[1759153750625,4.36568006,208.81,208.73,0.66]
[1759153750832,9.15481395,208.81,208.73,0.66]
[1759153751017,4.78913389,208.81,208.73,0.66]
[1759153751627,21.12742062,208.81,208.73,0.66]
[1759153752009,26.0,208.78,208.69,35.16]
[1759153752204,4.78996024,208.77,208.7,40.46]
[1759153753018,16.76486084,208.77,208.69,34.5]
[1759153753220,4.36568006,208.73,208.62,0.66]
[1759153753513,4.36568006,208.73,208.63,40.42]
[1759153753514,0.65,208.72,208.63,40.42]
[1759153753935,26.0,208.68,208.63,40.42]
[1759153754119,9.80793577,208.67,208.63,40.42]
[1759153754813,4.36568006,208.67,208.63,40.42]
[1759153755018,26.0,208.7,208.64,0.66]
[1759153755319,26.0,208.7,208.63,40.42]
[1759153755933,31.01568006,208.7,208.63,40.38]
[1759153756127,16.77289499,208.67,208.6,40.38]
[1759153756317,17.42289499,208.67,208.6,40.38]
[1759153756830,4.36568006,208.65,208.55,0.66]
[1759153757011,0.65,208.64,208.55,41.04]
[1759153757515,0.65,208.64,208.53,0.2]
[1759153757516,4.36568006,208.6,208.53,0.2]
[1759153757912,13.59559401,208.65,208.54,0.66]
[1759153758144,4.79271507,208.65,208.55,4.79501318]
[1759153758317,16.77450275,208.65,208.56,0.66]
[1759153758514,13.59559401,208.64,208.56,0.66]
[1759153758712,26.0,208.67,208.56,0.66]